bitfinex/quotes_SOLUSD_20220228
["timestamp","ask_amount","ask_price","bid_price","bid_amount"]
[1646027510618,1.41983073,86.529,86.46,50.18042329]
[1646027510817,27.2921,86.528,86.46,50.18042329]
[1646027511020,1.67704492,86.527,86.46,50.18042329]
[1646027511219,4.624,86.526,86.46,50.18042329]
[1646027511621,4.624,86.527,86.46,50.18042329]
[1646027512124,119.924,86.527,86.432,5.04676643]
[1646027512321,1.68958555,86.518,86.401,46.5477]
[1646027512523,4.625,86.517,86.401,46.5477]
[1646027512725,115.3,86.516,86.401,46.5477]
[1646027512922,115.3,86.514,86.401,45.5477]
[1646027513122,115.3,86.512,86.402,50.71628655]
[1646027513324,115.3,86.51,86.402,50.71628655]
[1646027513522,1.6803737,86.499,86.41,17.3633]
[1646027513822,4.626,86.498,86.411,6.0]
[1646027514024,47.9484,86.497,86.411,6.0]
[1646027514223,6.13322607,86.496,86.411,6.0]
[1646027514624,115.3,86.495,86.411,6.0]
[1646027514824,17.3642,86.48,86.411,6.0]
[1646027515022,17.3642,86.48,86.403,6.0]
[1646027516522,4.627,86.479,86.41,17.3634]
[1646027516739,4.627,86.479,86.411,6.0]
[1646027518340,29.5497,86.479,86.411,6.0]
[1646027519944,17.3646,86.47,86.411,6.0]
[1646027520945,17.3646,86.47,86.402,50.71628655]
[1646027522247,17.3646,86.47,86.403,6.0]
[1646027522845,17.3646,86.47,86.41,17.3638]
[1646027523145,17.3646,86.47,86.411,6.0]
[1646027523545,24.9227,86.479,86.411,6.0]
[1646027523946,24.9227,86.479,86.404,6.0]
[1646027524347,24.0056,86.503,86.42,17.3618]
[1646027524546,175.58,86.59,86.412,112.6]
[1646027524547,4.626,86.516,86.422,117.90363595]
[1646027524749,4.626,86.516,86.421,6.0]
[1646027524750,6.0,86.515,86.431,44.48683111]
[1646027524948,6.0,86.514,86.432,8.31507545]
[1646027525247,17.3561,86.52,86.432,8.31507545]
[1646027525447,6.0,86.519,86.44,17.3557]
[1646027525747,8.74678921,86.519,86.441,6.0]
[1646027525946,8.74678921,86.519,86.432,8.31507545]
[1646027525947,8.74678921,86.519,86.432,6.0]
[1646027526148,8.74678921,86.519,86.432,8.5555329]
[1646027526447,2.74678921,86.518,86.45,17.3557]
[1646027526650,2.74678921,86.518,86.451,6.0]
[1646027527251,4.625,86.53,86.452,115.3]
[1646027527547,26.48315051,86.542,86.455,3.00978091]
[1646027527749,1.83364828,86.569,86.455,3.00978091]
[1646027527750,4.624,86.568,86.455,3.00978091]
[1646027527948,4.624,86.568,86.459,115.3]
[1646027527949,1.58813198,86.566,86.459,115.3]
[1646027528147,4.623,86.565,86.47,14.05]
[1646027528362,4.623,86.565,86.49,17.3459]
[1646027528363,17.3479,86.56,86.49,17.3459]
[1646027528551,4.622,86.559,86.492,48.67462741]
[1646027528747,4.622,86.559,86.493,6.0]
[1646027529347,6.0,86.558,86.493,6.0]
[1646027529548,4.622,86.557,86.493,6.0]
[1646027529748,4.622,86.559,86.493,6.0]
[1646027530349,17.3479,86.56,86.493,6.0]
[1646027530551,115.3,86.557,86.493,6.0]
[1646027530750,17.3529,86.54,86.45,57.834]
[1646027530951,4.624,86.539,86.464,6.0]
[1646027531150,2.74678921,86.539,86.464,6.0]
[1646027531551,2.74678921,86.538,86.464,6.0]
[1646027531751,17.3507,86.54,86.47,17.3518]
[1646027532354,17.3507,86.54,86.471,6.0]
[1646027534355,17.3507,86.54,86.48,17.3497]
[1646027534554,2.74678921,86.552,86.481,8.82215182]
[1646027534755,2.74678921,86.562,86.481,6.0]
[1646027534955,4.623,86.566,86.481,8.65903465]
[1646027535355,8.74678921,86.565,86.481,8.65903465]
[1646027535557,17.3468,86.56,86.49,17.3471]
[1646027535756,17.3468,86.56,86.491,46.69882733]
[1646027536758,17.3487,86.55,86.491,46.69882733]
[1646027537159,2.74678921,86.549,86.491,46.69882733]
[1646027537558,22.8083,86.558,86.5,17.3455]
[1646027537760,22.8083,86.558,86.501,6.0]
[1646027539060,2.74678921,86.557,86.492,6.0]
[1646027541365,2.74678921,86.557,86.491,40.69882733]
[1646027541366,132.6488,86.55,86.491,40.69882733]
[1646027541566,6.24067048,86.549,86.491,40.69882733]
[1646027541765,7.36978921,86.549,86.491,40.69882733]
[1646027541966,4.623,86.549,86.491,40.69882733]
[1646027542167,2.74678921,86.548,86.491,40.69882733]
[1646027542366,4.623,86.547,86.491,40.69882733]
[1646027542567,17.3529,86.54,86.491,40.69882733]
[1646027542769,1.7123634,86.539,86.491,40.69882733]
[1646027542967,4.623,86.545,86.491,40.69882733]
[1646027543166,2.74678921,86.539,86.491,40.69882733]
[1646027543368,4.623,86.538,86.491,40.69882733]
[1646027543766,2.74678921,86.537,86.491,40.69882733]
[1646027543968,4.623,86.536,86.491,40.69882733]
[1646027544166,4.623,86.536,86.476,23.1565]
[1646027544368,2.74678921,86.535,86.476,23.1565]
[1646027544568,17.3529,86.53,86.476,23.1565]
[1646027544968,6.0,86.529,86.476,23.1565]
[1646027545168,6.0,86.529,86.477,57.08936679]
[1646027546172,2.74678921,86.528,86.477,57.08936679]
[1646027546374,17.3548,86.52,86.477,57.08936679]
[1646027547472,6.0,86.529,86.477,57.08936679]
[1646027547675,1.74327622,86.535,86.477,57.08936679]
[1646027547879,6.0,86.534,86.477,57.08936679]
[1646027548079,1.66049077,86.536,86.477,57.08936679]
[1646027548080,2.74678921,86.537,86.477,57.08936679]
[1646027548273,6.0,86.536,86.477,57.08936679]
[1646027548475,17.3528,86.53,86.477,57.08936679]
[1646027548674,1.37517334,86.529,86.477,57.08936679]
[1646027549073,2.74678921,86.528,86.477,57.08936679]
[1646027550178,1.37517334,86.529,86.463,24.5291]
[1646027550398,17.3545,86.52,86.464,6.0]
[1646027550775,2.74678921,86.519,86.464,6.0]
[1646027551176,2.74678921,86.519,86.465,50.81966807]
[1646027551376,2.74678921,86.519,86.466,6.0]
[1646027551575,2.74678921,86.519,86.465,50.81966807]
[1646027552978,2.74678921,86.519,86.463,24.5291]
[1646027553178,17.357,86.51,86.42,71.9045]
[1646027553477,29.1723,86.518,86.421,6.0]
[1646027553478,1.40936768,86.507,86.421,6.0]
[1646027553677,115.3,86.505,86.415,6.0]
[1646027553878,115.3,86.503,86.382,16.9794]
[1646027554080,115.3,86.501,86.383,60.13749688]
[1646027554283,1.7315432,86.488,86.4,17.3658]
[1646027554479,4.627,86.487,86.4,17.3658]
[1646027554777,1.75491486,86.484,86.383,60.13749688]
[1646027554978,4.627,86.483,86.377,112.6]
[1646027555178,115.3,86.479,86.36,14.05]
[1646027555379,1.47412505,86.468,86.36,71.944]
[1646027555579,115.3,86.466,86.36,71.944]
[1646027555778,115.3,86.464,86.36,71.944]
[1646027555978,115.3,86.462,86.361,4.628]
[1646027556179,17.3713,86.45,86.361,4.628]
[1646027556379,1.64422714,86.448,86.351,4.628]
[1646027556578,4.628,86.447,86.351,4.628]
[1646027556779,121.74514615,86.447,86.351,4.628]
[1646027556978,4.13843994,86.446,86.35,17.3755]
[1646027557178,4.628,86.445,86.351,55.07267553]
[1646027557381,115.3,86.444,86.352,6.0]
[1646027557678,1.35444135,86.429,86.352,6.0]
[1646027557879,4.63,86.428,86.352,6.0]
[1646027558082,11.0,86.428,86.352,6.0]
[1646027558284,1.58151897,86.427,86.352,6.0]
[1646027558481,4.63,86.426,86.35,17.3755]
[1646027558681,4.63,86.426,86.34,57.9072]
[1646027558682,132.6752,86.42,86.34,17.3779]
[1646027558882,1.63206564,86.417,86.329,4.63]
[1646027559083,4.631,86.416,86.329,4.63]
[1646027559384,115.3,86.415,86.312,4.631]
[1646027559582,17.382,86.39,86.313,47.83102175]
[1646027559782,1.64840882,86.389,86.313,47.83102175]
[1646027560284,1.64840882,86.389,86.314,6.0]
[1646027560786,1.64840882,86.389,86.315,4.632]
[1646027560986,1.64840882,86.389,86.316,6.0]
[1646027561186,1.64840882,86.389,86.317,4.632]
[1646027561383,1.64840882,86.389,86.32,17.3809]
[1646027561583,1.64840882,86.389,86.321,10.632]
[1646027562686,1.64840882,86.389,86.321,6.0]
[1646027563085,17.3803,86.4,86.321,6.0]
[1646027563289,4.631,86.399,86.314,6.0]
[1646027563686,1.57606516,86.405,86.315,4.631]
[1646027563887,23.9538,86.408,86.316,6.0]
[1646027564086,23.9538,86.408,86.32,57.9209]
[1646027564290,23.9538,86.408,86.321,4.631]
[1646027564588,27.9117,86.423,86.322,6.0]
[1646027564790,6.26310324,86.438,86.323,4.631]
[1646027564990,4.631,86.438,86.324,30.0415]
[1646027565290,4.63,86.455,86.325,119.93]
[1646027565507,17.3724,86.44,86.37,17.3717]
[1646027565809,6.18898123,86.439,86.372,50.42474477]
[1646027566006,6.18898123,86.439,86.373,6.0]
[1646027566407,1.56098123,86.439,86.373,6.0]
[1646027566908,6.0,86.438,86.373,6.0]
[1646027567109,6.2252815,86.437,86.372,50.42474477]
[1646027567708,1.5972815,86.437,86.372,50.42474477]
[1646027568309,1.5972815,86.437,86.373,6.0]
[1646027569111,1.5972815,86.437,86.372,50.42474477]
[1646027569309,1.5972815,86.437,86.373,6.0]
[1646027569712,1.5972815,86.437,86.372,50.42474477]
[1646027569911,6.0,86.436,86.372,50.42474477]
[1646027570113,4.628,86.435,86.372,50.42474477]
[1646027570411,7.37478921,86.435,86.373,6.0]
[1646027570611,2.74678921,86.435,86.373,6.0]
[1646027570814,2.74678921,86.435,86.372,50.42474477]
[1646027570815,2.74678921,86.434,86.372,50.42474477]
[1646027571212,2.74678921,86.434,86.373,6.0]
[1646027571813,2.74678921,86.434,86.372,50.42474477]
[1646027572212,1.5972815,86.437,86.373,6.0]
[1646027572412,4.628,86.436,86.373,6.0]
[1646027572616,1.35613,86.448,86.38,17.3704]
[1646027572814,2.74678921,86.449,86.38,17.3704]
[1646027573216,2.74678921,86.449,86.381,6.0]
[1646027573418,17.37,86.45,86.381,6.0]
[1646027574016,20.11678921,86.45,86.381,6.0]
[1646027574216,10.628,86.449,86.381,6.0]
[1646027574618,17.371,86.44,86.381,6.0]
[1646027574818,17.371,86.44,86.38,17.3704]
[1646027574819,1.43471144,86.439,86.372,50.42474477]
[1646027575018,4.628,86.438,86.373,6.0]
[1646027575217,4.628,86.438,86.372,50.42474477]
[1646027575416,7.37478921,86.438,86.372,50.42474477]
[1646027575620,2.74678921,86.437,86.372,50.42474477]
[1646027575820,4.628,86.436,86.372,50.42474477]
[1646027576121,17.3737,86.43,86.372,50.42474477]
[1646027576519,4.25269279,86.449,86.372,50.42474477]
[1646027576718,4.25269279,86.449,86.373,6.0]
[1646027577318,4.628,86.448,86.373,6.0]
[1646027577520,17.3689,86.45,86.38,17.37]
[1646027577723,50.47992466,86.458,86.381,6.0]
[1646027577923,50.47992466,86.458,86.381,10.628]
[1646027577924,49.0659,86.458,86.381,10.628]
[1646027578324,4.628,86.479,86.381,10.628]
[1646027578623,55.14658921,86.478,86.382,23.7095]
[1646027578822,4.628,86.477,86.383,6.0]
[1646027579021,7.37478921,86.477,86.383,6.0]
[1646027579622,17.3664,86.47,86.401,44.77837289]
[1646027579823,4.627,86.469,86.402,6.0]
[1646027580526,4.627,86.469,86.41,17.3641]
[1646027580723,17.3664,86.47,86.41,17.3641]
[1646027581324,17.3664,86.47,86.411,6.0]
[1646027581525,7.37378921,86.477,86.411,6.0]
[1646027581725,46.3998,86.478,86.411,6.0]
[1646027581926,7.75977994,86.477,86.411,6.0]
[1646027582227,10.50656915,86.477,86.411,6.0]
[1646027582426,46.3998,86.478,86.42,17.3619]
[1646027582625,46.3998,86.478,86.421,6.0]
[1646027583029,2.74678921,86.497,86.421,6.0]
[1646027583225,2.74678921,86.497,86.422,4.626]
[1646027583424,49.03847703,86.519,86.41,14.05]
[1646027583425,49.03847703,86.519,86.423,6.0]
[1646027583628,10.625,86.518,86.423,6.0]
[1646027583826,13.37178921,86.518,86.423,6.0]
[1646027584128,2.74678921,86.517,86.424,115.3]
[1646027584431,47.2886,86.519,86.433,115.3]
[1646027584627,47.2886,86.519,86.435,115.3]
[1646027584826,47.2886,86.519,86.436,10.625]
[1646027585227,47.2886,86.519,86.436,13.37178921]
[1646027585425,47.2886,86.519,86.45,17.3524]
[1646027585628,47.2886,86.519,86.451,6.0]
[1646027587225,6.08405791,86.518,86.451,6.0]
[1646027587426,6.0,86.517,86.45,17.3524]
[1646027587626,1.69152503,86.509,86.45,17.3524]
[1646027588227,17.3571,86.51,86.451,6.0]
[1646027591932,4.625,86.515,86.46,17.3542]
[1646027592132,2.74678921,86.53,86.462,48.7139643]
[1646027592332,28.67181717,86.534,86.463,6.0]
[1646027592531,24.04781717,86.534,86.463,6.0]
[1646027593133,4.624,86.541,86.463,6.0]
[1646027593532,17.3542,86.53,86.47,17.3518]
[1646027593733,4.624,86.529,86.471,6.0]
[1646027594134,4.624,86.529,86.47,17.3518]
[1646027594334,4.624,86.529,86.471,6.0]
[1646027595936,4.624,86.529,86.47,17.3518]
[1646027596935,4.624,86.529,86.471,6.0]
[1646027597736,17.3511,86.54,86.48,17.35]
[1646027598035,4.623,86.545,86.481,6.0]
[1646027598835,47.1017,86.546,86.47,14.05]
[1646027599035,47.1017,86.546,86.471,6.0]
[1646027600437,47.1017,86.546,86.49,17.3483]
[1646027600637,47.1017,86.546,86.492,46.48915336]
[1646027600839,47.1017,86.546,86.493,6.0]
[1646027601238,47.1017,86.546,86.492,46.48915336]
[1646027601740,47.1017,86.546,86.49,17.3483]
[1646027601940,47.1017,86.546,86.491,6.0]
[1646027602139,17.3507,86.54,86.48,17.35]
[1646027602339,17.3507,86.54,86.481,6.0]
[1646027603342,17.3507,86.54,86.48,17.35]
[1646027603742,17.3507,86.54,86.481,6.0]
[1646027604543,1.72121498,86.539,86.481,6.0]
[1646027605148,1.72121498,86.539,86.48,17.35]
[1646027605845,1.72121498,86.539,86.481,6.0]
[1646027606246,1.72121498,86.539,86.48,17.35]
[1646027606446,1.72121498,86.539,86.481,6.0]
[1646027607566,47.1017,86.546,86.49,17.3483]
[1646027607764,47.1017,86.546,86.491,6.0]
[1646027608565,17.3509,86.54,86.48,17.3502]
[1646027608766,1.38461432,86.538,86.44,57.8425]
[1646027608967,4.624,86.537,86.44,57.8425]
[1646027609166,28.67181717,86.537,86.44,57.8425]
[1646027609368,26.79460638,86.536,86.44,57.8425]
[1646027609569,6.33899364,86.535,86.464,47.74480433]
[1646027609868,9.08578285,86.535,86.465,6.0]
[1646027610067,2.74678921,86.535,86.465,6.0]
[1646027610368,7.37078921,86.534,86.465,6.0]
[1646027610570,17.3537,86.53,86.47,17.3521]
[1646027610767,4.624,86.529,86.471,6.0]
[1646027611172,2.74678921,86.529,86.471,6.0]
[1646027613072,2.74678921,86.529,86.47,17.3521]
[1646027613473,24.5144,86.533,86.47,17.3521]
[1646027613674,17.3511,86.54,86.471,6.0]
[1646027613974,4.624,86.545,86.48,17.3495]
[1646027614172,2.74678921,86.549,86.481,6.0]
[1646027614372,17.3491,86.55,86.481,6.0]
[1646027614575,23.6419,86.553,86.481,15.15]
[1646027615472,23.6419,86.553,86.49,17.3477]
[1646027615673,23.6419,86.553,86.491,53.45831333]
[1646027615875,2.74678921,86.563,86.492,115.3]
[1646027616073,2.74678921,86.577,86.5,14.05]
[1646027616272,24.04781717,86.584,86.502,115.3]
[1646027616473,2.74678921,86.587,86.503,2.32616632]
[1646027616672,24.7632,86.588,86.504,121.3]
[1646027616877,24.7632,86.588,86.511,115.3]
[1646027617076,6.0,86.587,86.521,47.74480433]
[1646027617277,6.0,86.587,86.522,6.0]
[1646027618074,6.0,86.587,86.53,17.3394]
[1646027618275,6.0,86.587,86.531,6.0]
[1646027618475,2.74678921,86.586,86.531,6.0]
[1646027618675,6.14467196,86.585,86.511,23.953]
[1646027618876,6.14467196,86.585,86.512,6.0]
[1646027619075,17.3434,86.58,86.52,17.3423]
[1646027619276,1.43166152,86.579,86.522,47.46455873]
[1646027619475,1.43166152,86.579,86.523,6.0]
[1646027619875,2.74678921,86.584,86.523,6.0]
[1646027620478,2.74678921,86.584,86.53,17.3402]
[1646027620677,2.74678921,86.594,86.531,6.0]
[1646027620877,24.658,86.613,86.531,6.0]
[1646027620878,6.08950216,86.612,86.531,6.0]
[1646027621178,4.21629137,86.612,86.531,6.0]
[1646027621378,1.53489556,86.61,86.53,14.05]
[1646027621578,4.62,86.609,86.531,6.0]
[1646027621880,1.4456983,86.599,86.531,6.0]
[1646027622077,6.0656983,86.599,86.531,6.0]
[1646027622682,1.67321267,86.598,86.531,6.0]
[1646027622883,1.67321267,86.598,86.532,6.0]
[1646027623081,4.62,86.597,86.531,6.0]
[1646027624183,1.67321267,86.598,86.531,6.0]
[1646027624583,7.36678921,86.597,86.53,31.3899]
[1646027624785,2.74678921,86.597,86.53,31.3899]
[1646027624984,2.74678921,86.597,86.531,6.0]
[1646027626183,4.62,86.596,86.531,6.0]
[1646027626384,1.64073528,86.589,86.531,6.0]
[1646027626583,1.64073528,86.589,86.524,6.0]
[1646027627184,7.36778921,86.588,86.52,17.3419]
[1646027627386,30.21848921,86.588,86.52,17.3419]
[1646027627686,4.21413483,86.587,86.52,17.3419]
[1646027627884,4.621,86.586,86.521,6.0]
[1646027628085,2.74678921,86.586,86.521,6.0]
[1646027628285,17.3434,86.58,86.521,6.0]
[1646027628585,6.12314145,86.579,86.513,6.0]
[1646027629185,6.12314145,86.579,86.501,24.1895]
[1646027629186,17.3457,86.57,86.501,24.1895]
[1646027629387,30.57399664,86.569,86.501,24.1895]
[1646027629587,1.74715904,86.568,86.497,53.16919119]
[1646027629990,6.0,86.567,86.497,53.16919119]
[1646027630187,8.74678921,86.567,86.497,53.16919119]
[1646027630388,17.349,86.56,86.5,17.3462]
[1646027630589,1.86838498,86.559,86.5,17.3462]
[1646027630788,6.0,86.567,86.5,17.3462]
[1646027630989,24.5578,86.569,86.501,6.0]
[1646027631188,24.5578,86.569,86.497,53.16919119]
[1646027631189,24.5578,86.569,86.498,6.0]
[1646027631788,24.5578,86.569,86.52,17.3417]
[1646027631991,17.3416,86.59,86.521,6.0]
[1646027632191,23.7118,86.592,86.521,6.0]
[1646027632389,23.7118,86.592,86.51,14.05]
[1646027632590,23.7118,86.592,86.511,6.0]
[1646027632988,1.53251798,86.608,86.531,42.03392647]
[1646027633187,2.74678921,86.623,86.532,6.0]
[1646027633391,29.4855,86.622,86.533,23.329]
[1646027633590,29.4855,86.622,86.534,6.0]
[1646027633790,29.4855,86.622,86.534,8.92735876]
[1646027633989,24.8655,86.622,86.55,17.335]
[1646027634190,24.8655,86.622,86.551,6.0]
[1646027634389,1.59480937,86.642,86.551,6.0]
[1646027634390,4.619,86.628,86.551,6.0]
[1646027634591,24.3801,86.636,86.552,115.3]
[1646027634792,24.3801,86.636,86.554,115.3]
[1646027635092,24.3801,86.636,86.571,50.89850016]
[1646027635290,24.3801,86.636,86.572,6.0]
[1646027636491,24.3801,86.636,86.571,50.89850016]
[1646027637190,12.68706262,86.635,86.572,6.0]
[1646027637390,9.94027341,86.635,86.572,6.0]
[1646027637595,24.3801,86.636,86.58,17.3297]
[1646027638189,24.3801,86.636,86.572,6.0]
[1646027640095,9.94635158,86.635,86.572,6.0]
[1646027640794,24.3801,86.636,86.58,17.3297]
[1646027640992,24.3801,86.636,86.581,6.0]
[1646027641197,2.74678921,86.658,86.573,115.3]
[1646027641498,4.618,86.672,86.576,2.40943716]
[1646027641696,23.13,86.671,86.58,14.05]
[1646027641898,23.13,86.671,86.59,17.3269]
[1646027642097,9.98091034,86.67,86.591,30.2766]
[1646027642297,9.98091034,86.67,86.592,115.3]
[1646027642497,9.98091034,86.67,86.594,115.3]
[1646027642702,9.98091034,86.67,86.595,6.0]
[1646027642899,9.98091034,86.67,86.593,6.0]
[1646027643299,9.98091034,86.67,86.592,6.0]
[1646027643501,9.98091034,86.67,86.611,43.01650574]
[1646027643700,9.98091034,86.67,86.612,6.0]
[1646027644603,9.98091034,86.67,86.611,43.01650574]
[1646027644604,4.57228827,86.669,86.611,43.01650574]
[1646027644800,4.616,86.668,86.6,17.3256]
[1646027645003,1.47365516,86.667,86.601,6.0]
[1646027645205,4.617,86.666,86.601,6.0]
[1646027645403,14.59791034,86.666,86.601,6.0]
[1646027645603,4.10530581,86.665,86.601,6.0]
[1646027645804,17.3271,86.66,86.602,50.92810254]
[1646027646305,9.98091034,86.659,86.602,50.92810254]
[1646027646505,9.98091034,86.659,86.591,24.2766]
[1646027646708,17.3271,86.66,86.592,6.0]
[1646027646709,1.44567178,86.657,86.592,6.0]
[1646027646909,4.617,86.656,86.571,30.4268]
[1646027647109,1.77898208,86.654,86.571,30.4268]
[1646027647409,14.59891034,86.653,86.572,57.54645357]
[1646027647610,1.84480796,86.652,86.573,6.0]
[1646027647813,4.618,86.651,86.573,6.0]
[1646027648027,6.39186822,86.651,86.573,6.0]
[1646027648228,12.72769955,86.65,86.573,6.0]
[1646027648426,1.72438991,86.649,86.573,6.0]
[1646027648629,11.70530025,86.649,86.58,17.3297]
[1646027648832,11.70530025,86.649,86.581,6.0]
[1646027649031,1.72438991,86.649,86.581,6.0]
[1646027649230,2.74678921,86.65,86.581,6.0]
[1646027649431,24.2709,86.655,86.573,6.0]
[1646027649632,24.2709,86.655,86.59,17.3276]
[1646027649833,24.2709,86.655,86.591,6.0]
[1646027651634,9.94342352,86.654,86.59,17.3276]
[1646027652442,11.71820899,86.654,86.59,17.3276]
[1646027652633,17.3288,86.65,86.59,17.3276]
[1646027652833,7.81139792,86.649,86.572,57.54645357]
[1646027653036,4.618,86.648,86.572,57.54645357]
[1646027653234,8.71821131,86.648,86.572,57.54645357]
[1646027653634,2.74678921,86.647,86.572,57.54645357]
[1646027653835,4.618,86.646,86.572,57.54645357]
[1646027654235,23.0201,86.645,86.573,6.0]
[1646027654433,17.3314,86.64,86.573,6.0]
[1646027654834,1.36619483,86.639,86.573,6.0]
[1646027656135,1.36619483,86.639,86.58,17.3296]
[1646027656336,1.36619483,86.639,86.581,6.0]
[1646027657940,1.36619483,86.639,86.58,17.3296]
[1646027659440,1.36619483,86.639,86.572,57.54645357]
[1646027659641,17.3327,86.63,86.573,6.0]
[1646027659941,1.47624705,86.629,86.55,14.05]
[1646027660142,27.22663626,86.629,86.53,71.8311]
[1646027660339,10.54272225,86.628,86.531,6.0]
[1646027660943,1.39111132,86.626,86.532,44.15901605]
[1646027661141,1.39111132,86.626,86.533,6.0]
[1646027661541,17.3352,86.62,86.54,17.3361]
[1646027661742,17.3352,86.62,86.541,6.0]
[1646027662249,22.504,86.619,86.542,22.8827]
[1646027662443,1.87344857,86.618,86.543,6.0]
[1646027662647,17.3365,86.61,86.532,44.15901605]
[1646027662849,17.3365,86.61,86.533,6.0]
[1646027662850,6.26442268,86.609,86.533,6.0]
[1646027663249,2.74678921,86.608,86.533,6.0]
[1646027663449,27.3227,86.607,86.533,6.0]
[1646027663748,27.3227,86.607,86.532,44.15901605]
[1646027663749,4.46210405,86.606,86.532,44.15901605]
[1646027663946,6.0,86.605,86.532,44.15901605]
[1646027664146,8.74678921,86.605,86.532,44.15901605]
[1646027664348,6.19546616,86.604,86.532,44.15901605]
[1646027664548,1.35307796,86.599,86.532,44.15901605]
[1646027665350,6.15487375,86.604,86.533,6.0]
[1646027665753,8.90166296,86.604,86.533,6.0]
[1646027666152,8.90166296,86.604,86.532,44.15901605]
[1646027666353,8.90166296,86.604,86.53,17.3397]
[1646027666552,8.90166296,86.604,86.526,23.7243]
[1646027666553,17.3406,86.59,86.531,6.0]
[1646027666777,17.3406,86.59,86.526,23.7243]
[1646027666978,25.1306,86.59,86.526,23.7243]
[1646027667479,25.1306,86.59,86.527,49.7222919]
[1646027669278,1.79569882,86.589,86.526,23.7243]
[1646027669481,17.3425,86.58,86.526,23.7243]
[1646027669679,17.3425,86.58,86.52,17.3419]
[1646027670280,17.3425,86.58,86.521,44.78972839]
[1646027672883,24.3061,86.588,86.53,17.3397]
[1646027673884,24.3061,86.588,86.531,6.0]
[1646027677588,24.3061,86.588,86.54,17.3375]
[1646027677787,17.3367,86.61,86.54,17.3375]
[1646027677987,22.6255,86.609,86.54,17.3375]
[1646027678388,9.92489136,86.608,86.541,6.0]
[1646027678591,9.92489136,86.608,86.55,17.3352]
[1646027678788,22.6255,86.609,86.551,49.71357192]
[1646027680489,22.6255,86.609,86.552,6.0]
[1646027680692,1.84525661,86.608,86.552,6.0]
[1646027680888,14.52115269,86.608,86.531,48.5824]
[1646027681088,6.19803374,86.607,86.531,48.5824]
[1646027681293,16.12714061,86.607,86.531,48.5824]
[1646027681487,16.12714061,86.607,86.51,71.8445]
[1646027681488,7.55699933,86.606,86.51,71.8445]
[1646027681693,17.3389,86.6,86.52,17.3418]
[1646027681890,31.09293167,86.599,86.521,6.0]
[1646027682091,1.58581187,86.598,86.52,17.3418]
[1646027682290,4.33260108,86.598,86.52,17.3418]
[1646027682494,9.92910687,86.597,86.52,17.3418]
[1646027682695,4.621,86.596,86.521,6.0]
[1646027682891,1.42493902,86.595,86.521,6.0]
[1646027683093,4.621,86.594,86.521,29.5592]
[1646027683291,1.5923893,86.593,86.521,29.5592]
[1646027683493,17.3414,86.59,86.521,29.5592]
[1646027683693,24.4076,86.589,86.521,29.5592]
[1646027683993,4.621,86.588,86.521,29.5592]
[1646027684391,6.0898216,86.588,86.521,29.5592]
[1646027684591,1.61680864,86.586,86.521,29.5592]
[1646027684992,2.74678921,86.585,86.521,23.5592]
[1646027685391,4.621,86.584,86.521,23.5592]
[1646027685691,17.3425,86.58,86.521,23.5592]
[1646027686292,2.74678921,86.579,86.521,23.5592]
[1646027686490,4.53345545,86.579,86.51,17.3438]
[1646027686693,17.3445,86.57,86.511,6.0]
[1646027686893,1.52392555,86.569,86.511,6.0]
[1646027687293,6.0,86.568,86.5,17.3459]
[1646027687492,30.0879,86.568,86.501,53.75256022]